bitfinex-derivatives/quotes_SOLF0:USTF0_20240829
["timestamp","ask_amount","ask_price","bid_price","bid_amount"]
[1724974383326,14.5731,139.52,139.51,0.02134258]
[1724974386929,14.573,139.53,139.51,0.02134258]
[1724974389128,14.5731,139.52,139.51,0.02134258]
[1724974399332,3.5831,139.52,139.51,0.02134258]
[1724974399535,14.5731,139.52,139.51,0.02134258]
[1724974400038,8.3031,139.52,139.51,0.02134258]
[1724974400341,19.2931,139.52,139.51,0.02134258]
[1724974402346,19.2931,139.52,139.46,1.3813]
[1724974402347,3.5838,139.5,139.46,1.3813]
[1724974402542,10.99,139.49,139.46,1.3813]
[1724974402737,10.99,139.49,139.46,3.5845]
[1724974403233,11.03632247,139.49,139.46,3.5845]
[1724974403437,10.99,139.48,139.46,3.5845]
[1724974403837,14.5742,139.48,139.45,3.5848]
[1724974404037,10.99,139.48,139.45,3.5848]
[1724974404644,10.99,139.46,139.38,4.72]
[1724974404843,0.05116894,139.44,139.4,1.3254]
[1724974405045,0.05116894,139.44,139.41,3.65196451]
[1724974405233,0.05116894,139.44,139.42,3.5857]
[1724974406541,0.05116894,139.44,139.43,3.5854]
[1724974408054,0.05116894,139.44,139.42,3.5856]
[1724974410943,0.05116894,139.44,139.43,3.5854]
[1724974411944,3.56933256,139.58,139.43,10.99]
[1724974412142,3.56933256,139.58,139.44,10.99]
[1724974412143,10.99,139.51,139.44,10.99]
[1724974412347,19.2936,139.51,139.44,10.99]
[1724974412549,3.9983,139.56,139.46,10.99]
[1724974412846,10.99,139.53,139.47,10.99]
[1724974413039,0.05197304,139.51,139.49,0.05042388]
[1724974413239,0.05197304,139.51,139.49,3.63412388]
[1724974415047,0.05197304,139.51,139.49,0.05042388]
[1724974415245,0.05197304,139.51,139.5,3.5836]
[1724974415642,0.05197304,139.51,139.49,0.05042388]
[1724974415847,11.04197304,139.51,139.49,0.05042388]
[1724974416047,10.99,139.5,139.49,0.05042388]
[1724974417246,14.5736,139.5,139.49,0.05042388]
[1724974418357,14.62547304,139.51,139.49,0.05042388]
[1724974419954,8.35547304,139.51,139.49,0.05042388]
[1724974420250,19.34547304,139.51,139.49,0.05042388]
[1724974420458,14.62547304,139.51,139.49,0.05042388]
[1724974420855,11.04197304,139.51,139.49,0.05042388]
[1724974421056,15.71,139.5,139.42,1.2858]
[1724974421260,43.96,139.54,139.42,1.2858]
[1724974421261,10.99,139.45,139.42,1.2858]
[1724974421462,10.99,139.45,139.4,3.5296969]
[1724974421656,10.99,139.45,139.42,3.5855]
[1724974422157,11.04443271,139.45,139.42,3.5855]
[1724974423660,14.62933271,139.45,139.41,3.5859]
[1724974423859,14.62933271,139.45,139.39,10.99]
[1724974424252,11.04443271,139.45,139.42,3.5857]
[1724974425658,14.62943271,139.45,139.42,3.5857]
[1724974428859,14.62943271,139.45,139.41,3.5859]
[1724974429176,10.99,139.43,139.37,3.57173836]
[1724974429467,0.04679959,139.41,139.39,3.5863]
[1724974430755,0.04679959,139.41,139.4,3.5862]
[1724974432363,4.72,139.46,139.43,3.5853]
[1724974432566,15.71,139.47,139.43,3.5853]
[1724974433264,19.2947,139.47,139.43,3.5853]
[1724974433463,0.04682849,139.46,139.44,0.04882675]
[1724974434057,14.62152849,139.46,139.44,0.04882675]
[1724974434661,19.34152849,139.46,139.44,0.04882675]
[1724974434857,15.75682849,139.46,139.44,0.04882675]
[1724974435062,3.5849,139.45,139.44,0.04882675]
[1724974435461,15.75682849,139.46,139.44,0.04882675]
[1724974436470,11.03682849,139.46,139.44,0.04882675]
[1724974436871,15.75682849,139.46,139.44,0.04882675]
[1724974437375,19.34152849,139.46,139.44,0.04882675]
[1724974438778,15.75682849,139.46,139.44,0.04882675]
[1724974439871,11.03682849,139.46,139.44,0.04882675]
[1724974440072,15.75682849,139.46,139.44,0.04882675]
[1724974440468,11.03682849,139.46,139.44,0.04882675]
[1724974441180,15.75682849,139.46,139.44,0.04882675]
[1724974441383,11.03682849,139.46,139.44,0.04882675]
[1724974441674,15.75682849,139.46,139.44,0.04882675]
[1724974442878,11.03682849,139.46,139.44,0.04882675]
[1724974444576,14.62152849,139.46,139.44,0.04882675]
[1724974446075,11.03682849,139.46,139.44,0.04882675]
[1724974446978,11.03682849,139.46,139.44,3.63392675]
[1724974447174,0.04682849,139.46,139.44,3.63392675]
[1724974447373,0.04682849,139.46,139.45,3.5849]
[1724974447568,0.04682849,139.46,139.45,14.5749]
[1724974447768,10.99,139.51,139.45,10.99]
[1724974447974,15.9696,139.53,139.49,3.5837]
[1724974448279,10.99,139.54,139.47,10.99]
[1724974448682,0.05517399,139.52,139.5,3.5835]
[1724974449178,0.05517399,139.52,139.51,3.5834]
[1724974449666,0.05517399,139.52,139.49,0.05100449]
[1724974449875,10.99,139.51,139.49,0.05100449]
[1724974452280,14.5734,139.51,139.49,0.05100449]
[1724974454984,10.99,139.51,139.49,0.05100449]
[1724974455181,0.05517399,139.52,139.49,3.63470449]
[1724974455986,11.04517399,139.52,139.49,3.63470449]
[1724974459491,11.04517399,139.52,139.49,0.05100449]
[1724974459894,14.62837399,139.52,139.49,3.63470449]
[1724974460894,3.63837399,139.52,139.49,3.63470449]
[1724974463292,0.05517399,139.52,139.51,3.5834]
[1724974463591,0.05517399,139.52,139.51,14.5734]
[1724974463797,89.97974422,139.57,139.55,3.5822]
[1724974464589,89.97974422,139.57,139.54,10.99]
[1724974464789,89.97974422,139.57,139.54,3.5825]
[1724974464993,90.02529,139.57,139.54,0.04926518]
[1724974465195,101.01529,139.57,139.54,0.04926518]
[1724974466294,10.99,139.55,139.54,0.04926518]
[1724974467793,14.5724,139.55,139.54,0.04926518]
[1724974468197,10.99,139.55,139.54,0.04926518]
[1724974474097,3.5823,139.56,139.54,0.04926518]
[1724974474605,110.64909,139.57,139.54,0.04926518]
[1724974475091,105.94909,139.57,139.54,0.04926518]
[1724974475795,90.02529,139.57,139.55,3.5824]
[1724974476896,0.04554578,139.57,139.56,3.5821]
[1724974481400,0.04554578,139.57,139.54,0.04926518]
[1724974482411,3.62744578,139.57,139.54,3.63186518]
[1724974482706,0.04554578,139.57,139.54,3.63186518]
[1724974498322,0.04554578,139.57,139.54,0.04926518]
[1724974499921,0.04554578,139.57,139.55,3.5822]
[1724974500521,0.04554578,139.57,139.54,3.63176518]
[1724974500522,3.62744578,139.57,139.54,3.63176518]
[1724974501224,0.04554578,139.57,139.54,3.63176518]
[1724974502116,0.04554578,139.57,139.54,0.04926518]
[1724974502516,0.04554578,139.57,139.54,11.03926518]
[1724974502721,0.04554578,139.57,139.55,10.99]
[1724974503117,0.04554578,139.57,139.56,3.5821]
[1724974504518,0.04554578,139.57,139.54,0.04926518]
[1724974505622,10.99,139.56,139.54,0.04926518]
[1724974505926,3.5824,139.55,139.54,0.04926518]
[1724974509541,8.2824,139.55,139.54,0.04926518]
[1724974514334,19.2724,139.55,139.54,0.04926518]
[1724974514535,3.5836,139.51,139.45,4.84953161]
[1724974514732,3.5836,139.51,139.45,1.3058]
[1724974514733,14.5736,139.51,139.45,1.3058]
[1724974514933,14.5736,139.51,139.47,3.5842]
[1724974515233,19.2736,139.51,139.47,3.5842]
[1724974515739,3.63364434,139.5,139.48,0.0457499]
[1724974516443,3.5839,139.49,139.48,0.0457499]
[1724974516732,14.5739,139.49,139.48,0.0457499]
[1724974518336,19.2739,139.49,139.48,0.0457499]
[1724974522542,4.7,139.49,139.48,0.0457499]
[1724974522838,4.74994434,139.5,139.48,0.0457499]
[1724974523638,0.04994434,139.5,139.48,0.0457499]
[1724974523838,4.74994434,139.5,139.48,0.0457499]
[1724974524139,3.5839,139.49,139.48,0.0457499]
[1724974529541,19.32364434,139.5,139.48,0.0457499]
[1724974530244,15.73994434,139.5,139.48,0.0457499]
[1724974530941,11.03994434,139.5,139.48,0.0457499]
[1724974531437,3.5839,139.49,139.48,0.0457499]
[1724974533250,19.2739,139.49,139.48,0.0457499]
[1724974533443,14.5739,139.49,139.48,0.0457499]
[1724974534146,19.2739,139.49,139.48,0.0457499]
[1724974538340,3.63364434,139.5,139.48,0.0457499]
[1724974541643,0.04994434,139.5,139.48,0.0457499]
[1724974541950,0.04994434,139.5,139.48,11.0357499]
[1724974542250,10.99,139.56,139.49,10.99]
[1724974542546,94.17396029,139.58,139.51,10.99]
[1724974542752,97.75576029,139.58,139.53,3.5827]
[1724974542948,102.45576029,139.58,139.51,14.64879991]
[1724974543147,0.04530634,139.56,139.53,0.04820904]
[1724974543446,0.04530634,139.56,139.54,3.5825]
[1724974545951,0.04530634,139.56,139.55,3.5824]
[1724974546155,12.3613,139.64,139.55,10.99]
[1724974546349,17.0613,139.64,139.58,10.99]
[1724974546749,12.3613,139.64,139.58,10.99]
[1724974546956,15.9416,139.64,139.6,3.5811]
[1724974547143,0.05411196,139.63,139.61,0.05513868]
[1724974548144,3.63451196,139.63,139.61,0.05513868]
[1724974548548,10.99,139.62,139.61,0.05513868]
[1724974549356,14.5706,139.62,139.61,0.05513868]
[1724974551272,3.5806,139.62,139.61,0.05513868]
[1724974551555,11.04411196,139.63,139.61,0.05513868]
[1724974551755,15.74411196,139.63,139.61,0.05513868]
[1724974552760,4.75411196,139.63,139.61,0.05513868]
[1724974553150,0.05411196,139.63,139.61,0.05513868]
[1724974554857,0.05411196,139.63,139.62,3.5806]
[1724974559860,0.05411196,139.63,139.61,14.62583868]
[1724974560261,0.05411196,139.63,139.61,11.04513868]
[1724974562168,0.05411196,139.63,139.61,0.05513868]
[1724974562371,0.05411196,139.63,139.61,3.63583868]
[1724974563657,0.05411196,139.63,139.62,3.5806]
[1724974563862,0.05411196,139.63,139.62,14.5706]
[1724974568969,0.05411196,139.63,139.62,17.3547]
[1724974569168,3.579,139.69,139.65,3.5798]
[1724974569972,17.0852,139.7,139.65,10.99]
[1724974569973,3.5786,139.7,139.65,10.99]
[1724974570174,0.05104596,139.69,139.66,0.04917566]
[1724974571276,3.62994596,139.69,139.66,0.04917566]
[1724974573278,3.5791,139.68,139.66,0.04917566]
[1724974573967,3.62994596,139.69,139.66,0.04917566]
[1724974577872,3.62994596,139.69,139.66,3.62857566]
[1724974579071,3.62994596,139.69,139.66,0.04917566]
[1724974581977,3.5791,139.68,139.66,0.04917566]
[1724974589476,3.62994596,139.69,139.66,0.04917566]
[1724974592186,3.5791,139.68,139.66,0.04917566]
[1724974597082,3.62994596,139.69,139.66,0.04917566]
[1724974599192,3.62994596,139.69,139.66,3.62867566]
[1724974599790,0.05104596,139.69,139.66,0.04917566]
[1724974599984,10.99,139.67,139.58,3.50670778]
[1724974600186,10.99,139.64,139.56,2.6461]
[1724974600393,10.99,139.64,139.57,14.57937432]
[1724974600394,15.67,139.64,139.57,14.57937432]
[1724974600586,3.5807,139.62,139.58,3.5814]
[1724974600895,3.5807,139.62,139.57,14.57937432]
[1724974601185,3.5811,139.6,139.58,0.05128697]
[1724974601886,0.05467672,139.61,139.58,3.63278697]
[1724974602085,0.05467672,139.61,139.58,14.62278697]
[1724974605195,0.05467672,139.61,139.58,3.63278697]
[1724974605793,0.05467672,139.61,139.58,0.05128697]
[1724974606300,3.5811,139.6,139.58,0.05128697]
[1724974607292,0.05467672,139.61,139.58,0.05128697]
[1724974608498,0.05467672,139.61,139.59,3.5813]
[1724974609594,0.05467672,139.61,139.58,0.05128697]
[1724974610600,3.5812,139.6,139.58,0.05128697]
[1724974612804,11.04467672,139.61,139.58,0.05128697]
[1724974613197,3.5811,139.6,139.58,0.05128697]
[1724974621513,3.63557672,139.61,139.58,0.05128697]
[1724974623615,11.04467672,139.61,139.58,0.05128697]
[1724974623919,10.99,139.59,139.58,0.05128697]
[1724974624418,14.5713,139.59,139.58,0.05128697]
[1724974624620,10.99,139.59,139.58,0.05128697]
[1724974627322,14.5713,139.59,139.58,0.05128697]
[1724974627812,7.3286,139.6,139.58,0.05128697]
[1724974628014,1.3668,139.6,139.58,0.05128697]
[1724974628420,1.33257672,139.61,139.58,3.63278697]
[1724974634626,0.05467672,139.61,139.59,3.5813]
[1724974635124,0.05467672,139.61,139.6,14.5711]
[1724974639928,0.05467672,139.61,139.6,3.5811]
[1724974640127,0.05467672,139.61,139.59,3.5811]
[1724974642130,0.05467672,139.61,139.58,0.05128697]
[1724974642727,3.63557672,139.61,139.58,0.05128697]
[1724974644631,3.5811,139.6,139.58,0.05128697]
[1724974645031,0.05467672,139.61,139.58,0.05128697]
[1724974646235,3.63567672,139.61,139.58,0.05128697]
[1724974646738,14.5713,139.59,139.58,0.05128697]
[1724974651448,10.99,139.59,139.58,0.05128697]
[1724974651641,13.6041,139.6,139.58,0.05128697]
[1724974652334,3.5813,139.59,139.58,0.05128697]
[1724974652535,4.66,139.6,139.58,0.05128697]
[1724974653037,3.63567672,139.61,139.58,0.05128697]
[1724974654049,0.05467672,139.61,139.58,3.63268697]
[1724974654247,0.05467672,139.61,139.58,0.05128697]
[1724974654942,3.63567672,139.61,139.58,0.05128697]
[1724974658952,3.63567672,139.61,139.58,3.63288697]
[1724974662952,3.5811,139.6,139.58,0.05128697]
[1724974663149,10.99,139.59,139.58,0.05128697]
[1724974663745,14.5713,139.59,139.58,0.05128697]
[1724974667646,19.2313,139.59,139.58,0.05128697]
[1724974669658,10.99,139.56,139.53,3.5828]
[1724974670548,11.03860103,139.56,139.53,3.63681112]
[1724974671353,14.62080103,139.56,139.53,3.63681112]
[1724974671950,11.03860103,139.56,139.53,3.63681112]
[1724974673749,0.04860103,139.56,139.54,3.5825]
[1724974675758,0.04860103,139.56,139.53,3.63671112]
[1724974678161,0.04860103,139.56,139.55,3.5824]
[1724974679055,14.5709,139.61,139.57,3.5818]
[1724974679760,3.5813,139.6,139.56,3.582]
[1724974680156,0.04946053,139.59,139.57,0.05506613]
[1724974680362,0.04946053,139.59,139.57,3.63686613]
[1724974681062,0.04946053,139.59,139.57,0.05506613]
[1724974682658,0.04946053,139.59,139.57,3.63686613]
[1724974684964,3.63076053,139.59,139.57,0.05506613]
[1724974687572,0.04946053,139.59,139.57,0.05506613]
[1724974688268,0.04946053,139.59,139.58,3.5816]
[1724974691574,43.96,139.67,139.58,3.5816]
[1724974691575,224.0,139.72,139.61,3.5806]
[1724974691771,10.99,139.66,139.61,3.5806]
[1724974692277,3.5798,139.65,139.61,3.5806]
[1724974692471,0.05143447,139.64,139.62,0.05329996]
[1724974693869,0.05143447,139.64,139.62,3.63389996]
[1724974696084,3.63153447,139.64,139.62,0.05329996]
[1724974697782,3.5803,139.63,139.62,0.05329996]
[1724974721615,3.63163447,139.64,139.62,0.05329996]
[1724974721922,0.05143447,139.64,139.62,0.05329996]
[1724974722216,1.3586,139.7,139.63,10.99]
[1724974722414,10.99,139.7,139.63,10.99]
[1724974723421,0.05090123,139.68,139.65,3.63284467]
[1724974724222,0.05090123,139.68,139.65,0.05304467]
[1724974724223,3.63000123,139.68,139.65,0.05304467]
[1724974724518,10.99,139.67,139.65,0.05304467]
[1724974726313,3.5795,139.66,139.65,0.05304467]
[1724974730221,14.5694,139.67,139.65,0.05304467]
[1724974731126,10.99,139.67,139.65,0.05304467]
[1724974731320,15.70090123,139.68,139.65,0.05304467]
[1724974732520,0.05090123,139.68,139.65,0.05304467]
[1724974733118,0.05090123,139.68,139.66,3.5793]
[1724974734726,0.05090123,139.68,139.67,3.5793]
[1724974735223,85.5526528,139.72,139.68,3.5788]
[1724974735418,81.9745528,139.72,139.67,10.99]
[1724974735822,81.9745528,139.72,139.68,10.99]
[1724974736216,0.04530731,139.71,139.69,3.5788]
[1724974736417,0.04530731,139.71,139.69,0.0531129]
[1724974737218,0.04530731,139.71,139.7,3.5785]
[1724974739223,0.04530731,139.71,139.69,3.6318129]
[1724974739525,0.04530731,139.71,139.69,0.0531129]
[1724974741924,0.04530731,139.71,139.69,3.6318129]
[1724974742233,3.62360731,139.71,139.69,0.0531129]
[1724974743123,0.04530731,139.71,139.69,0.0531129]
[1724974745035,14.61370731,139.71,139.69,0.0531129]
[1724974748831,11.03530731,139.71,139.69,0.0531129]
[1724974749033,14.5685,139.7,139.69,0.0531129]
[1724974749240,19.2085,139.7,139.69,0.0531129]
[1724974764638,19.2085,139.7,139.61,2.7859]
[1724974764639,3.5798,139.65,139.61,1.3904]
[1724974764835,10.99,139.66,139.61,1.3904]
[1724974765241,14.5696,139.66,139.62,3.5804]
[1724974765544,0.05502949,139.65,139.63,0.05434203]
[1724974771343,3.63482949,139.65,139.63,0.05434203]
[1724974772345,3.58,139.64,139.63,0.05434203]
[1724974774651,3.63492949,139.65,139.63,0.05434203]
[1724974774948,0.05502949,139.65,139.63,0.05434203]
[1724974775545,0.05502949,139.65,139.64,3.58]
[1724974775748,0.05502949,139.65,139.63,0.05434203]
[1724974776551,0.05502949,139.65,139.63,3.63454203]
[1724974776940,0.05502949,139.65,139.63,0.05434203]
[1724974778351,0.05502949,139.65,139.64,3.58]
[1724974778655,0.05502949,139.65,139.63,0.05434203]
[1724974778856,0.05502949,139.65,139.63,3.63454203]
[1724974783455,3.63492949,139.65,139.63,0.05434203]
[1724974786963,3.58,139.64,139.63,0.05434203]
[1724974789468,14.57,139.64,139.63,0.05434203]
[1724974791975,3.5811,139.6,139.55,12.4035]
[1724974792484,3.5811,139.6,139.57,3.5816]
[1724974792978,3.63633207,139.6,139.57,3.63423137]
[1724974797584,0.05523207,139.6,139.57,3.63423137]
[1724974798275,0.05523207,139.6,139.58,3.5816]
[1724974798479,0.05523207,139.6,139.57,0.05263137]
[1724974798480,0.05523207,139.6,139.57,3.64263022]
[1724974798684,0.05523207,139.6,139.57,14.63263022]
[1724974798978,0.05523207,139.6,139.58,3.5814]
[1724974799878,0.05523207,139.6,139.59,3.5813]
[1724974802478,0.05523207,139.6,139.59,14.5713]
[1724974803273,0.05523207,139.6,139.59,3.5813]
[1724974810389,4.62,139.67,139.63,3.5802]
[1724974810693,15.61,139.68,139.63,3.5802]
[1724974810892,10.99,139.68,139.63,3.5802]
[1724974811287,3.5796,139.66,139.63,3.5802]
[1724974811484,3.5796,139.66,139.64,0.05057788]
[1724974818991,14.5696,139.66,139.64,0.05057788]
[1724974819187,3.5798,139.65,139.64,0.05057788]
[1724974820105,14.5698,139.65,139.64,0.05057788]
[1724974820696,10.99,139.65,139.57,3.58999885]
[1724974820895,10.99,139.65,139.55,1.3353]
[1724974820896,10.99,139.59,139.55,1.3353]
[1724974821101,10.99,139.59,139.56,3.5819]
[1724974821601,11.04069546,139.59,139.56,3.62882386]
[1724974825595,14.62209546,139.59,139.56,0.04692386]
[1724974826005,11.04069546,139.59,139.56,0.04692386]
[1724974826410,11.04069546,139.59,139.56,3.62902386]
[1724974827612,10.99,139.58,139.56,0.04692386]
[1724974829207,3.5817,139.58,139.56,0.04692386]
[1724974829507,0.05069546,139.59,139.56,11.03692386]
[1724974830407,0.05069546,139.59,139.58,3.5816]
[1724974831408,4.62,139.64,139.57,14.62267867]
[1724974831710,15.61,139.67,139.61,10.99]
[1724974832014,10.99,139.67,139.61,10.99]
[1724974832308,3.5797,139.66,139.62,3.5804]
[1724974832611,0.04663793,139.65,139.63,0.04832128]
[1724974833316,0.04663793,139.65,139.63,3.62862128]
[1724974835909,0.04663793,139.65,139.63,0.04832128]
[1724974837901,10.99,139.64,139.59,3.5811]
[1724974838114,10.99,139.62,139.56,10.99]
[1724974838811,10.99,139.62,139.58,3.5814]
[1724974838812,3.5807,139.62,139.58,3.5814]
[1724974839017,0.04658627,139.61,139.59,0.0496847]
[1724974839912,0.04658627,139.61,139.59,3.6309847]
[1724974842113,0.04658627,139.61,139.6,3.5811]
[1724974842914,0.04658627,139.61,139.6,14.5711]
[1724974843607,0.04658627,139.61,139.59,0.0496847]
[1724974844717,0.04658627,139.61,139.59,3.6308847]
[1724974846215,0.04658627,139.61,139.6,14.5711]
[1724974862423,2.6089,139.69,139.62,3.5803]
[1724974862720,2.6089,139.69,139.63,10.99]
[1724974863224,2.6089,139.69,139.65,10.99]
[1724974863431,0.05385232,139.68,139.66,11.04044235]
[1724974863619,0.05385232,139.68,139.67,10.99]
[1724974863932,0.05385232,139.68,139.67,14.5693]
[1724974866123,4.1051,139.75,139.71,3.5781]
[1724974866332,9.91957215,139.86,139.73,10.99]
[1724974866525,9.91957215,139.86,139.75,10.99]
[1724974866526,3.9457,139.82,139.75,10.99]
[1724974866723,14.9357,139.82,139.75,10.99]
[1724974866924,3.9457,139.82,139.77,10.99]
[1724974867133,1.3342,139.82,139.78,10.99]
[1724974867330,0.05321372,139.81,139.78,11.03690395]
[1724974868029,0.05321372,139.81,139.78,0.04690395]
[1724974868634,27.46,139.8,139.78,0.04690395]
[1724974869229,3.576,139.8,139.78,0.04690395]
[1724974870024,3.5762,139.79,139.78,0.04690395]
[1724974873834,27.46,139.79,139.59,63.246]
[1724974874031,1.4075,139.78,139.7,4.62]
[1724974874230,1.4075,139.78,139.68,28.7459]
[1724974874433,6.0275,139.78,139.69,7.2959]
[1724974874835,0.04908376,139.75,139.72,0.05143047]
[1724974876039,3.62638376,139.75,139.72,0.05143047]
[1724974876934,0.04908376,139.75,139.72,3.62943047]
[1724974881442,0.04908376,139.75,139.72,0.05143047]
[1724974882549,0.04908376,139.75,139.72,3.67048753]
[1724974883457,0.04908376,139.75,139.72,3.62943047]
[1724974883951,0.04908376,139.75,139.72,7.19948048]
[1724974885247,0.04908376,139.75,139.72,3.62943047]
[1724974886144,0.04908376,139.75,139.72,7.17898603]
[1724974886946,3.62628376,139.75,139.72,3.62943047]
[1724974887148,3.62628376,139.75,139.72,0.05143047]
[1724974889944,3.62628376,139.75,139.72,3.60538467]
[1724974892965,3.62628376,139.75,139.72,0.05143047]
[1724974893950,0.04908376,139.75,139.72,0.05143047]
[1724974895254,3.5777,139.74,139.72,0.05143047]
[1724974906268,3.62648376,139.75,139.72,0.05143047]
[1724974909268,3.62648376,139.75,139.72,3.62933047]
[1724974909563,0.04908376,139.75,139.72,3.62933047]
[1724974909961,0.04908376,139.75,139.72,7.19222679]
[1724974910768,0.04908376,139.75,139.74,3.5775]
[1724974911169,0.04908376,139.75,139.74,14.5675]
[1724974911369,0.04908376,139.75,139.73,3.5776]
[1724974911775,0.04908376,139.75,139.72,14.60432679]
[1724974911976,0.04908376,139.75,139.74,3.5775]
[1724974914373,0.04908376,139.75,139.74,14.5675]
[1724974914882,0.04908376,139.75,139.74,19.1675]
[1724974915378,3.5755,139.82,139.78,3.5764]
[1724974915790,6.1812,139.83,139.79,3.5762]
[1724974916079,2.6059,139.83,139.78,10.99]
[1724974916284,2.6059,139.83,139.79,0.05218004]
[1724974916285,0.05400588,139.82,139.79,0.05218004]
[1724974917377,0.05400588,139.82,139.8,3.5759]
[1724974917578,0.05400588,139.82,139.79,0.05218004]
[1724974918183,0.05400588,139.82,139.79,3.62828004]
[1724974919280,0.05400588,139.82,139.8,3.5759]
[1724974919586,0.05400588,139.82,139.79,0.05218004]
[1724974920592,0.05400588,139.82,139.8,14.51393213]
[1724974920889,0.05400588,139.82,139.8,10.99]
[1724974921688,0.05400588,139.82,139.8,14.5658]
[1724974921879,0.05400588,139.82,139.8,3.5758]
[1724974928383,0.05400588,139.82,139.81,3.5757]
[1724974929690,0.05400588,139.82,139.8,3.5759]
[1724974931193,10.99,139.81,139.79,0.05218004]
[1724974933882,14.5658,139.81,139.79,0.05218004]
[1724974935688,14.566,139.8,139.66,7.1589]
[1724974935895,14.566,139.8,139.71,12.3198]
[1724974935896,10.99,139.78,139.71,12.3198]
[1724974936491,14.5666,139.78,139.73,3.5776]
[1724974936885,0.04965516,139.77,139.74,0.05246308]
[1724974937491,3.62635516,139.77,139.74,0.05246308]
[1724974938897,11.03965516,139.77,139.74,0.05246308]
[1724974939087,10.99,139.75,139.74,0.05246308]
[1724974940189,14.5672,139.75,139.74,0.05246308]
[1724974941391,5.971,139.76,139.74,0.05246308]
[1724974941586,8.177,139.76,139.74,0.05246308]
[1724974944496,3.577,139.76,139.74,0.05246308]
[1724974951899,3.62645516,139.77,139.74,3.62996308]
[1724974952101,0.04965516,139.77,139.74,0.05246308]
[1724974953411,0.04965516,139.77,139.75,3.5771]
[1724974954207,0.04965516,139.77,139.76,3.577]
[1724974957812,0.04965516,139.77,139.75,3.5771]
[1724974958005,3.62655516,139.77,139.74,0.05246308]
[1724974958205,0.04965516,139.77,139.75,3.5772]
[1724974959505,0.04965516,139.77,139.74,3.62986308]
[1724974959910,11.03965516,139.77,139.74,3.62986308]
[1724974961306,14.61655516,139.77,139.74,0.05246308]
[1724974961512,10.99,139.75,139.74,0.05246308]
[1724974962316,14.5672,139.75,139.74,0.05246308]
[1724974966007,10.99,139.75,139.67,1.3952]
[1724974966214,14.5681,139.72,139.67,5.9952]
[1724974966410,14.5681,139.72,139.67,1.3952]
[1724974967114,0.04832419,139.71,139.68,3.62748457]
[1724974967316,0.04832419,139.71,139.68,0.04848457]
[1724974969213,0.04832419,139.71,139.68,3.62738457]
[1724974969722,0.04832419,139.71,139.69,3.5787]
[1724974980941,0.04832419,139.71,139.7,3.5785]
[1724974987345,0.04832419,139.71,139.7,14.5685]
[1724974989543,2.5549,139.79,139.75,3.5772]
[1724974989749,79.90005652,139.8,139.74,3.54740908]
[1724974990046,90.89005652,139.8,139.73,10.99]
[1724974990353,94.46615652,139.8,139.75,3.5772]
[1724974990750,0.0492999,139.79,139.76,0.04785814]
[1724974991352,0.0492999,139.79,139.77,3.5766]
[1724974994250,0.0492999,139.79,139.76,3.62475814]
[1724974996348,3.6255999,139.79,139.76,0.04785814]
[1724974996546,11.0392999,139.79,139.76,0.04785814]
[1724974997359,3.5765,139.78,139.76,0.04785814]
[1724974997549,0.0492999,139.79,139.76,3.62485814]
[1724974999456,3.6254999,139.79,139.76,3.62485814]
[1724974999661,14.6154999,139.79,139.76,3.62485814]
[1724975000663,0.0492999,139.79,139.76,3.62485814]
[1724975001748,0.0492999,139.79,139.77,3.5766]
[1724975003761,0.0492999,139.79,139.78,3.5765]
[1724975024979,0.0492999,139.79,139.77,3.5767]
[1724975029585,0.0492999,139.79,139.76,3.62475814]
[1724975032385,0.0492999,139.79,139.77,3.5766]
[1724975039892,0.0492999,139.79,139.78,3.5765]
[1724975046503,1.3013,139.85,139.81,3.5755]
[1724975046808,12.2913,139.85,139.81,3.5755]
[1724975047302,0.05229454,139.84,139.82,0.04783873]
[1724975047800,10.99,139.83,139.82,0.04783873]
[1724975047995,10.99,139.83,139.74,10.99]
[1724975048197,10.99,139.8,139.74,10.99]
[1724975048599,10.99,139.8,139.77,3.5766]
[1724975049104,11.04409738,139.8,139.77,3.62627831]
[1724975053204,11.04409738,139.8,139.77,0.04967831]
[1724975053708,3.5764,139.79,139.77,0.04967831]
[1724975054110,14.5664,139.79,139.77,0.04967831]
[1724975059015,3.5765,139.78,139.77,0.04967831]
[1724975060709,14.5665,139.78,139.77,0.04967831]
[1724975065411,3.5765,139.78,139.77,0.04967831]